[Event "FIDE Grand Swiss 2023"]
[Site "Villa Marina, Douglas, Isle of Man, Isle Of Man"]
[Date "2023.11.02"]
[Round "8.23"]
[White "Jumabayev, Rinat"]
[Black "Harikrishna, Pentala"]
[Result "1/2-1/2"]
[TimeControl "40/90 + 30 + 30s/move"]
[WhiteFideId "13702661"]
[BlackFideId "5007003"]
[WhiteElo "2585"]
[BlackElo "2716"]

1. e4 {[%clk 01:40:59]} c6 {[%clk 01:40:44]} {[%emt 00:00:17]} 2. Nf3 {[%clk
01:40:21]} {[%emt 00:01:07]} d5 {[%clk 01:41:03]} {[%emt 00:00:11]} 3. d3
{[%clk 01:40:42]} {[%emt 00:00:09]} dxe4 {[%clk 01:35:31]} {[%emt 00:06:02]} 4.
dxe4 {[%clk 01:41:04]} {[%emt 00:00:09]} Qxd1+ {[%clk 01:35:53]} {[%emt
00:00:08]} 5. Kxd1 {[%clk 01:41:29]} {[%emt 00:00:05]} Bg4 {[%clk 01:34:39]}
{[%emt 00:01:43]} 6. Be2 {[%clk 01:40:48]} {[%emt 00:01:10]} Bxf3 {[%clk
01:32:32]} {[%emt 00:02:39]} 7. Bxf3 {[%clk 01:39:09]} {[%emt 00:02:09]} Nd7
{[%clk 01:32:52]} {[%emt 00:00:10]} 8. g3 {[%clk 01:34:14]} {[%emt 00:05:25]}
h5 {[%clk 01:29:31]} {[%emt 00:03:50]} 9. Ke2 {[%clk 01:32:52]} {[%emt
00:01:53]} g6 {[%clk 01:28:41]} {[%emt 00:01:18]} 10. Be3 {[%clk 01:24:28]}
{[%emt 00:08:54]} Ngf6 {[%clk 01:25:43]} {[%emt 00:03:29]} 11. a4 {[%clk
01:16:42]} {[%emt 00:08:17]} Ng4 {[%clk 01:15:43]} {[%emt 00:10:29]} 12. Bd4
{[%clk 01:07:13]} {[%emt 00:10:00]} e5 {[%clk 01:14:21]} {[%emt 00:01:51]} 13.
Bc3 {[%clk 01:07:42]} {[%emt 00:00:02]} Bc5 {[%clk 01:14:07]} {[%emt 00:00:43]}
14. h3 {[%clk 01:06:47]} {[%emt 00:01:25]} Ngf6 {[%clk 01:14:08]} {[%emt
00:00:29]} 15. Nd2 {[%clk 01:06:12]} {[%emt 00:01:05]} Bd4 {[%clk 01:11:21]}
{[%emt 00:03:16]} 16. Bxd4 {[%clk 01:02:10]} {[%emt 00:04:34]} exd4 {[%clk
01:11:41]} {[%emt 00:00:09]} 17. Nc4 {[%clk 01:02:17]} {[%emt 00:00:23]} Nc5
{[%clk 01:09:01]} {[%emt 00:03:10]} 18. e5 {[%clk 01:00:29]} {[%emt 00:02:18]}
Nfd7 {[%clk 01:07:58]} {[%emt 00:01:33]} 19. b4 {[%clk 00:47:07]} {[%emt
00:13:52]} Ne6 {[%clk 01:02:51]} {[%emt 00:05:37]} 20. h4 {[%clk 00:36:35]}
{[%emt 00:11:03]} Rd8 {[%clk 00:46:07]} {[%emt 00:17:13]} 21. Bg2 {[%clk
00:32:44]} {[%emt 00:04:21]} O-O {[%clk 00:43:35]} {[%emt 00:03:01]} 22. a5
{[%clk 00:19:54]} {[%emt 00:13:22]} d3+ {[%clk 00:34:50]} {[%emt 00:09:15]} 23.
cxd3 {[%clk 00:20:01]} {[%emt 00:00:23]} Nd4+ {[%clk 00:35:07]} {[%emt
00:00:12]} 24. Ke3 {[%clk 00:09:19]} {[%emt 00:11:12]} Nxe5 {[%clk 00:20:09]}
{[%emt 00:15:28]} 25. Nxe5 {[%clk 00:09:42]} {[%emt 00:00:07]} Rfe8 {[%clk
00:20:32]} {[%emt 00:00:07]} 26. f4 {[%clk 00:09:53]} {[%emt 00:00:20]} f6
{[%clk 00:20:56]} {[%emt 00:00:05]} 27. Rac1 {[%clk 00:04:12]} {[%emt
00:06:12]} fxe5 {[%clk 00:17:36]} {[%emt 00:03:48]} 28. fxe5 {[%clk 00:04:28]}
{[%emt 00:00:16]} Rxe5+ {[%clk 00:12:02]} {[%emt 00:06:03]} 29. Be4 {[%clk
00:04:53]} {[%emt 00:00:05]} Kg7 {[%clk 00:10:37]} {[%emt 00:01:55]} 30. Rc4
{[%clk 00:03:31]} {[%emt 00:01:53]} Nf5+ {[%clk 00:09:16]} {[%emt 00:01:51]} 31.
Kf4 {[%clk 00:03:56]} {[%emt 00:00:03]} Rb5 {[%clk 00:07:16]} {[%emt 00:02:30]}
32. a6 {[%clk 00:02:25]} {[%emt 00:02:03]} Rf8 {[%clk 00:03:51]} {[%emt
00:03:54]} 33. Bxf5 {[%clk 00:02:37]} {[%emt 00:00:18]} Rfxf5+ {[%clk
00:03:33]} {[%emt 00:00:49]} 34. Ke3 {[%clk 00:02:50]} {[%emt 00:00:16]} bxa6
{[%clk 00:03:04]} {[%emt 00:00:59]} 35. Rxc6 {[%clk 00:01:00]} {[%emt
00:02:20]} a5 {[%clk 00:03:07]} {[%emt 00:00:27]} 36. bxa5 {[%clk 00:01:15]}
{[%emt 00:00:15]} Rxa5 {[%clk 00:03:16]} {[%emt 00:00:21]} 37. Rhc1 {[%clk
00:00:43]} {[%emt 00:01:02]} Rae5+ {[%clk 00:03:21]} {[%emt 00:00:25]} 38. Kd4
{[%clk 00:01:07]} {[%emt 00:00:06]} Rd5+ {[%clk 00:03:43]} {[%emt 00:00:08]} 39.
Ke3 {[%clk 00:01:34]} {[%emt 00:00:02]} Rde5+ {[%clk 00:01:29]} {[%emt
00:02:45]} 40. Kd4 {[%clk 00:01:58]} {[%emt 00:00:07]} Rd5+ {[%clk 00:01:00]}
{[%emt 00:00:58]} 41. Ke3 {[%clk 00:02:21]} {[%emt 00:00:06]} Rde5+ {[%clk
00:00:38]} {[%emt 00:00:53]} 1/2-1/2

[Event "FIDE Grand Swiss 2023"]
[Site "Villa Marina, Douglas, Isle of Man, Isle Of Man"]
[Date "2023.11.02"]
[Round "8.24"]
[White "Mamedov, Rauf"]
[Black "Grandelius, Nils"]
[Result "1-0"]
[TimeControl "40/90 + 30 + 30s/move"]
[WhiteFideId "13401653"]
[BlackFideId "1710400"]
[WhiteElo "2640"]
[BlackElo "2689"]

1. e4 {[%clk 01:40:54]} {[%emt 00:00:05]} c5 {[%clk 01:40:26]} {[%emt
00:00:35]} 2. Nf3 {[%clk 01:41:18]} {[%emt 00:00:06]} d6 {[%clk 01:40:48]}
{[%emt 00:00:07]} 3. Nc3 {[%clk 01:40:56]} {[%emt 00:00:53]} Nf6 {[%clk
01:40:45]} {[%emt 00:00:33]} 4. d4 {[%clk 01:41:19]} {[%emt 00:00:07]} cxd4
{[%clk 01:41:05]} {[%emt 00:00:09]} 5. Nxd4 {[%clk 01:41:45]} {[%emt 00:00:04]}
a6 {[%clk 01:41:10]} {[%emt 00:00:25]} 6. Bg5 {[%clk 01:42:11]} {[%emt
00:00:05]} e6 {[%clk 01:40:53]} {[%emt 00:00:45]} 7. f4 {[%clk 01:39:14]}
{[%emt 00:03:29]} Be7 {[%clk 01:40:05]} {[%emt 00:01:17]} 8. e5 {[%clk
01:35:54]} {[%emt 00:03:50]} dxe5 {[%clk 01:36:59]} {[%emt 00:03:36]} 9. fxe5
{[%clk 01:36:05]} {[%emt 00:00:20]} Nd5 {[%clk 01:18:28]} {[%emt 00:19:00]} 10.
Bxe7 {[%clk 01:36:21]} {[%emt 00:00:15]} Qxe7 {[%clk 01:18:53]} {[%emt
00:00:05]} 11. Nf5 {[%clk 01:36:48]} {[%emt 00:00:03]} exf5 {[%clk 01:15:45]}
{[%emt 00:03:37]} 12. Nxd5 {[%clk 01:37:10]} {[%emt 00:00:08]} Qxe5+ {[%clk
01:16:08]} {[%emt 00:00:08]} 13. Qe2 {[%clk 01:37:38]} {[%emt 00:00:03]} Qxe2+
{[%clk 01:15:56]} {[%emt 00:00:41]} 14. Bxe2 {[%clk 01:38:03]} {[%emt
00:00:04]} Ra7 {[%clk 01:13:35]} {[%emt 00:02:52]} 15. Nb6 {[%clk 01:26:23]}
{[%emt 00:12:10]} Be6 {[%clk 01:11:11]} {[%emt 00:02:52]} 16. O-O-O {[%clk
01:26:17]} {[%emt 00:00:37]} Nd7 {[%clk 00:59:24]} {[%emt 00:12:17]} 17. Nc8
{[%clk 01:16:35]} {[%emt 00:10:13]} Ra8 {[%clk 00:59:44]} {[%emt 00:00:10]} 18.
Nd6+ {[%clk 01:17:01]} {[%emt 00:00:04]} Ke7 {[%clk 01:00:04]} {[%emt
00:00:09]} 19. Rhe1 {[%clk 00:59:11]} {[%emt 00:18:21]} Nc5 {[%clk 00:33:54]}
{[%emt 00:26:40]} 20. Bf3 {[%clk 00:53:54]} {[%emt 00:05:47]} Kf6 {[%clk
00:30:58]} {[%emt 00:03:25]} 21. Nxb7 {[%clk 00:47:29]} {[%emt 00:06:56]} Nxb7
{[%clk 00:26:48]} {[%emt 00:04:40]} 22. Bxb7 {[%clk 00:47:42]} {[%emt
00:00:18]} Ra7 {[%clk 00:27:06]} {[%emt 00:00:11]} 23. Bf3 {[%clk 00:47:47]}
{[%emt 00:00:24]} Rc8 {[%clk 00:20:11]} {[%emt 00:07:25]} 24. b3 {[%clk
00:32:01]} {[%emt 00:16:17]} a5 {[%clk 00:17:53]} {[%emt 00:02:48]} 25. Kb2
{[%clk 00:30:19]} {[%emt 00:02:11]} Rc5 {[%clk 00:16:25]} {[%emt 00:01:59]} 26.
c4 {[%clk 00:28:35]} {[%emt 00:02:14]} g5 {[%clk 00:16:20]} {[%emt 00:00:34]}
27. Kc3 {[%clk 00:23:56]} {[%emt 00:05:10]} g4 {[%clk 00:13:59]} {[%emt
00:02:51]} 28. Be2 {[%clk 00:24:08]} {[%emt 00:00:19]} h5 {[%clk 00:14:13]}
{[%emt 00:00:14]} 29. Bf1 {[%clk 00:15:03]} {[%emt 00:09:35]} h4 {[%clk
00:13:20]} {[%emt 00:01:24]} 30. a3 {[%clk 00:14:51]} {[%emt 00:00:43]} Rc8
{[%clk 00:01:28]} {[%emt 00:12:21]} 31. Rd4 {[%clk 00:14:40]} {[%emt 00:00:41]}
Rc5 {[%clk 00:01:13]} {[%emt 00:00:45]} 32. Rd2 {[%clk 00:10:05]} {[%emt
00:05:05]} Rc8 {[%clk 00:01:24]} {[%emt 00:00:19]} 33. Rd6 {[%clk 00:09:47]}
{[%emt 00:00:48]} Rc5 {[%clk 00:00:48]} {[%emt 00:01:05]} 34. Rd8 {[%clk
00:08:55]} {[%emt 00:01:22]} Rc6 {[%clk 00:00:44]} {[%emt 00:00:35]} 35. Bd3
{[%clk 00:08:43]} {[%emt 00:00:42]} Rc5 {[%clk 00:00:44]} {[%emt 00:00:30]} 36.
Rf1 {[%clk 00:06:38]} {[%emt 00:02:35]} Re5 {[%clk 00:00:36]} {[%emt 00:00:38]}
37. Kd2 {[%clk 00:04:33]} {[%emt 00:02:35]} Rb7 {[%clk 00:00:45]} {[%emt
00:00:22]} 38. Rb1 {[%clk 00:04:03]} {[%emt 00:00:59]} Ra7 {[%clk 00:00:36]}
{[%emt 00:00:39]} 39. Rd4 {[%clk 00:03:40]} {[%emt 00:00:53]} Ra8 {[%clk
00:00:52]} {[%emt 00:00:14]} 40. Rf1 {[%clk 00:02:44]} {[%emt 00:01:26]} Rb8
{[%clk 00:00:40]} {[%emt 00:00:42]} 41. Kc3 {[%clk 00:49:05]} {[%emt 00:04:09]}
Re3 {[%clk 00:31:25]} {[%emt 00:19:44]} 42. Rxg4 {[%clk 00:31:58]} {[%emt
00:17:38]} Ke5 {[%clk 00:29:09]} {[%emt 00:02:47]} 43. Rxh4 {[%clk 00:32:05]}
{[%emt 00:00:23]} Rxd3+ {[%clk 00:29:08]} {[%emt 00:00:30]} 44. Kxd3 {[%clk
00:32:32]} {[%emt 00:00:04]} Rxb3+ {[%clk 00:29:34]} {[%emt 00:00:04]} 45. Kc2
{[%clk 00:25:07]} {[%emt 00:07:55]} Rxa3 {[%clk 00:29:41]} {[%emt 00:00:22]} 46.
g3 {[%clk 00:20:04]} {[%emt 00:05:33]} a4 {[%clk 00:28:57]} {[%emt 00:01:14]}
47. Rb1 {[%clk 00:18:47]} {[%emt 00:01:47]} Rf3 {[%clk 00:22:08]} {[%emt
00:07:19]} 48. Rb5+ {[%clk 00:18:42]} {[%emt 00:00:36]} Kd6 {[%clk 00:10:37]}
{[%emt 00:12:00]} 49. Ra5 {[%clk 00:18:49]} {[%emt 00:00:23]} a3 {[%clk
00:10:56]} {[%emt 00:00:11]} 50. Rf4 {[%clk 00:17:42]} {[%emt 00:01:37]} Re3
{[%clk 00:11:19]} {[%emt 00:00:07]} 51. Kd2 {[%clk 00:14:05]} {[%emt 00:04:07]}
Rb3 {[%clk 00:11:44]} {[%emt 00:00:05]} 52. Rd4+ {[%clk 00:12:40]} {[%emt
00:01:55]} Kc6 {[%clk 00:12:07]} {[%emt 00:00:07]} 53. Rd3 {[%clk 00:06:30]}
{[%emt 00:06:41]} Rb2+ {[%clk 00:12:29]} {[%emt 00:00:07]} 54. Kc3 {[%clk
00:06:57]} {[%emt 00:00:03]} Rxh2 {[%clk 00:12:22]} {[%emt 00:00:38]} 55. Ra6+
{[%clk 00:06:51]} {[%emt 00:00:36]} Kb7 {[%clk 00:06:39]} {[%emt 00:06:12]} 56.
Rxa3 {[%clk 00:07:15]} {[%emt 00:00:07]} Kc6 {[%clk 00:07:04]} {[%emt
00:00:05]} 57. Ra6+ {[%clk 00:04:52]} {[%emt 00:02:53]} Kb7 {[%clk 00:07:09]}
{[%emt 00:00:25]} 58. Ra5 {[%clk 00:03:46]} {[%emt 00:01:37]} Rf2 {[%clk
00:05:05]} {[%emt 00:02:33]} 59. Kd4 {[%clk 00:02:45]} {[%emt 00:01:32]} f4
{[%clk 00:01:06]} {[%emt 00:04:29]} 60. Kc5 {[%clk 00:02:58]} {[%emt 00:00:17]}
fxg3 {[%clk 00:00:37]} {[%emt 00:00:59]} 61. Rb3+ {[%clk 00:03:20]} {[%emt
00:00:07]} Kc7 {[%clk 00:15:15]} {[%emt 00:00:52]} 62. Ra7+ {[%clk 00:16:43]}
{[%emt 00:02:07]} Kc8 {[%clk 00:11:33]} {[%emt 00:04:10]} 63. Kc6 {[%clk
00:15:16]} {[%emt 00:02:00]} Bd7+ {[%clk 00:11:44]} {[%emt 00:00:18]} 64. Rxd7
{[%clk 00:15:42]} {[%emt 00:00:04]} Rf6+ {[%clk 00:12:08]} {[%emt 00:00:06]} 65.
Rd6 {[%clk 00:16:10]} {[%emt 00:00:02]} g2 {[%clk 00:12:30]} {[%emt 00:00:08]}
66. Rg3 {[%clk 00:16:34]} {[%emt 00:00:06]} 1-0

[Event "FIDE Grand Swiss 2023"]
[Site "Villa Marina, Douglas, Isle of Man, Isle Of Man"]
[Date "2023.11.02"]
[Round "8.25"]
[White "Sargissian, Gabriel"]
[Black "Warmerdam, Max"]
[Result "1/2-1/2"]
[TimeControl "40/90 + 30 + 30s/move"]
[WhiteFideId "13300881"]
[BlackFideId "1048104"]
[WhiteElo "2686"]
[BlackElo "2636"]

1. d4 {[%clk 01:40:55]} {[%emt 00:00:04]} Nf6 {[%clk 01:40:53]} {[%emt
00:00:07]} 2. c4 {[%clk 01:41:20]} {[%emt 00:00:05]} e6 {[%clk 01:41:18]}
{[%emt 00:00:05]} 3. Nf3 {[%clk 01:41:01]} {[%emt 00:00:49]} d5 {[%clk
01:41:41]} {[%emt 00:00:06]} 4. Nc3 {[%clk 01:41:23]} {[%emt 00:00:08]} c5
{[%clk 01:41:49]} {[%emt 00:00:22]} 5. cxd5 {[%clk 01:40:49]} {[%emt 00:01:06]}
cxd4 {[%clk 01:42:12]} {[%emt 00:00:06]} 6. Qxd4 {[%emt 00:02:01]} exd5 {[%clk
01:42:35]} 7. Bg5 {[%clk 01:36:16]} {[%emt 00:03:39]} Be7 {[%clk 01:42:57]}
{[%emt 00:00:08]} 8. e3 {[%clk 01:33:53]} {[%emt 00:02:52]} O-O {[%clk
01:41:48]} {[%emt 00:01:40]} 9. Rd1 {[%clk 01:33:39]} {[%emt 00:00:44]} Be6
{[%clk 01:41:18]} {[%emt 00:00:59]} 10. Bd3 {[%clk 01:33:13]} {[%emt 00:00:57]}
h6 {[%clk 01:40:59]} {[%emt 00:00:48]} 11. Bh4 {[%clk 01:33:36]} {[%emt
00:00:08]} Qa5 {[%clk 01:40:44]} {[%emt 00:00:45]} 12. Bb1 {[%clk 01:33:49]}
{[%emt 00:00:16]} Qa6 {[%clk 01:40:59]} {[%emt 00:00:16]} 13. Qd3 {[%clk
01:33:38]} {[%emt 00:00:41]} Qxd3 {[%clk 01:41:21]} {[%emt 00:00:08]} 14. Bxd3
{[%clk 01:34:03]} {[%emt 00:00:05]} Nc6 {[%clk 01:41:44]} {[%emt 00:00:07]} 15.
Bc2 {[%clk 01:19:28]} {[%emt 00:15:05]} g5 {[%clk 01:35:39]} {[%emt 00:06:34]}
16. Bg3 {[%clk 01:18:56]} {[%emt 00:01:02]} Rfd8 {[%clk 01:26:52]} {[%emt
00:09:18]} 17. O-O {[%clk 01:07:00]} {[%emt 00:12:26]} Ne4 {[%clk 01:23:15]}
{[%emt 00:04:07]} 18. Ne2 {[%clk 00:48:44]} {[%emt 00:18:45]} Bf6 {[%clk
01:20:55]} {[%emt 00:02:49]} 19. Nfd4 {[%clk 00:48:06]} {[%emt 00:01:09]} Rac8
{[%clk 01:06:28]} {[%emt 00:14:57]} 20. Bb1 {[%clk 00:47:29]} {[%emt 00:01:07]}
Nxg3 {[%clk 00:58:07]} {[%emt 00:08:52]} 21. hxg3 {[%clk 00:46:52]} {[%emt
00:01:06]} Be5 {[%clk 00:43:51]} {[%emt 00:14:46]} 22. f4 {[%clk 00:43:33]}
{[%emt 00:03:50]} Bf6 {[%clk 00:40:58]} {[%emt 00:03:23]} 23. Kf2 {[%clk
00:42:43]} {[%emt 00:01:20]} Bg4 {[%clk 00:38:18]} {[%emt 00:03:09]} 24. Rd2
{[%clk 00:36:49]} {[%emt 00:06:24]} Bxe2 {[%clk 00:34:39]} {[%emt 00:04:09]} 25.
Nxe2 {[%clk 00:36:04]} {[%emt 00:01:16]} d4 {[%clk 00:33:22]} {[%emt 00:01:47]}
26. e4 {[%clk 00:35:50]} {[%emt 00:00:44]} d3 {[%clk 00:33:47]} {[%emt
00:00:05]} 27. Rxd3 {[%clk 00:31:35]} {[%emt 00:04:44]} Rxd3 {[%clk 00:22:14]}
{[%emt 00:12:03]} 28. Bxd3 {[%clk 00:32:01]} {[%emt 00:00:04]} Rd8 {[%clk
00:20:52]} {[%emt 00:01:53]} 29. Bc4 {[%clk 00:21:53]} {[%emt 00:10:37]} Rd2
{[%clk 00:20:17]} {[%emt 00:01:04]} 30. Ke3 {[%clk 00:21:49]} {[%emt 00:00:35]}
Rxb2 {[%clk 00:19:52]} {[%emt 00:00:55]} 31. Rd1 {[%clk 00:21:19]} {[%emt
00:01:00]} b5 {[%clk 00:17:02]} {[%emt 00:03:19]} 32. Bb3 {[%clk 00:20:44]}
{[%emt 00:01:05]} Na5 {[%clk 00:16:20]} {[%emt 00:01:13]} 33. Bd5 {[%clk
00:18:24]} {[%emt 00:02:50]} Bd8 {[%clk 00:12:37]} {[%emt 00:04:12]} 34. Rd2
{[%clk 00:14:38]} {[%emt 00:04:15]} Bb6+ {[%clk 00:11:46]} {[%emt 00:01:22]} 35.
Kd3 {[%clk 00:13:07]} {[%emt 00:02:01]} Rb4 {[%clk 00:09:36]} {[%emt 00:02:40]}
36. Rc2 {[%clk 00:11:00]} {[%emt 00:02:36]} Ra4 {[%clk 00:08:52]} {[%emt
00:01:15]} 37. e5 {[%clk 00:10:43]} {[%emt 00:00:48]} Kg7 {[%clk 00:05:09]}
{[%emt 00:04:12]} 38. f5 {[%clk 00:07:20]} {[%emt 00:03:53]} Nc4 {[%clk
00:05:20]} {[%emt 00:00:19]} 39. Bxc4 {[%clk 00:05:42]} {[%emt 00:02:08]} bxc4+
{[%clk 00:05:45]} {[%emt 00:00:04]} 40. Rxc4 {[%clk 00:01:47]} {[%emt
00:04:26]} Rxa2 {[%clk 00:02:53]} {[%emt 00:03:22]} 41. g4 {[%clk 00:44:35]}
{[%emt 00:07:42]} Ra3+ {[%clk 00:45:17]} {[%emt 00:08:06]} 42. Nc3 {[%clk
00:42:44]} {[%emt 00:02:21]} Ba5 {[%clk 00:41:32]} {[%emt 00:04:14]} 43. Kd4
{[%clk 00:41:50]} {[%emt 00:01:24]} Bxc3+ {[%clk 00:41:54]} {[%emt 00:00:09]}
44. Rxc3 {[%clk 00:42:16]} {[%emt 00:00:04]} Rxc3 {[%clk 00:42:18]} {[%emt
00:00:06]} 45. Kxc3 {[%clk 00:42:42]} {[%emt 00:00:04]} Kf8 {[%clk 00:42:42]}
{[%emt 00:00:05]} 46. Kb4 {[%clk 00:38:18]} {[%emt 00:04:55]} Ke7 {[%clk
00:42:56]} {[%emt 00:00:16]} 47. Kb5 {[%clk 00:34:29]} {[%emt 00:04:19]} Kd7
{[%clk 00:43:17]} {[%emt 00:00:08]} 48. Ka6 {[%clk 00:32:43]} {[%emt 00:02:17]}
Kc6 {[%clk 00:41:55]} {[%emt 00:01:51]} 49. Kxa7 {[%clk 00:32:40]} {[%emt
00:00:34]} Kd5 {[%clk 00:42:19]} {[%emt 00:00:06]} 50. Kb6 {[%clk 00:31:59]}
{[%emt 00:01:11]} Kxe5 {[%clk 00:41:34]} {[%emt 00:01:14]} 51. Kc6 {[%clk
00:32:10]} {[%emt 00:00:20]} Kf4 {[%clk 00:37:55]} {[%emt 00:04:08]} 52. Kd6
{[%clk 00:32:15]} {[%emt 00:00:26]} Kxg4 {[%clk 00:37:58]} {[%emt 00:00:27]} 53.
f6 {[%clk 00:32:36]} {[%emt 00:00:09]} Kf5 {[%clk 00:38:14]} {[%emt 00:00:13]}
54. Ke7 {[%clk 00:33:02]} {[%emt 00:00:05]} Kg6 {[%clk 00:38:40]} {[%emt
00:00:04]} 55. g4 {[%clk 00:33:25]} {[%emt 00:00:06]} h5 {[%clk 00:38:56]}
{[%emt 00:00:15]} 56. gxh5+ {[%clk 00:33:50]} {[%emt 00:00:04]} Kh7 {[%clk
00:39:20]} {[%emt 00:00:06]} 57. Kxf7 {[%clk 00:34:11]} {[%emt 00:00:09]} g4
{[%clk 00:39:46]} {[%emt 00:00:04]} 58. Ke6 {[%clk 00:31:13]} {[%emt 00:03:28]}
g3 {[%clk 00:38:32]} {[%emt 00:01:44]} 59. f7 {[%clk 00:31:11]} {[%emt
00:00:32]} g2 {[%clk 00:38:50]} {[%emt 00:00:12]} 60. f8=Q {[%clk 00:31:35]}
{[%emt 00:00:05]} g1=Q {[%clk 00:39:15]} {[%emt 00:00:07]} 61. Qf5+ {[%clk
00:31:48]} {[%emt 00:00:16]} Kh6 {[%clk 00:38:18]} {[%emt 00:01:26]} 62. Qf6
{[%clk 00:32:04]} {[%emt 00:00:14]} Kh7 {[%clk 00:38:44]} {[%emt 00:00:04]} 63.
Qf5+ {[%clk 00:32:20]} {[%emt 00:00:14]} 1/2-1/2

[Event "FIDE Grand Swiss 2023"]
[Site "Villa Marina, Douglas, Isle of Man, Isle Of Man"]
[Date "2023.11.02"]
[Round "8.26"]
[White "Abasov, Nijat"]
[Black "Sargsyan, Shant"]
[Result "0-1"]
[TimeControl "40/90 + 30 + 30s/move"]
[WhiteFideId "13402960"]
[BlackFideId "13306766"]
[WhiteElo "2679"]
[BlackElo "2631"]

1. c4 {[%clk 01:40:58]} e6 {[%clk 01:39:30]} {[%emt 00:01:31]} 2. Nc3 {[%clk
01:41:03]} {[%emt 00:00:25]} d5 {[%clk 01:39:52]} {[%emt 00:00:09]} 3. cxd5
{[%clk 01:41:03]} {[%emt 00:00:30]} exd5 {[%clk 01:39:53]} {[%emt 00:00:29]} 4.
d4 {[%clk 01:41:28]} {[%emt 00:00:04]} Nf6 {[%clk 01:39:41]} {[%emt 00:00:42]}
5. Bg5 {[%clk 01:41:47]} {[%emt 00:00:11]} Be7 {[%clk 01:39:55]} {[%emt
00:00:16]} 6. e3 {[%clk 01:41:40]} {[%emt 00:00:37]} O-O {[%clk 01:40:05]}
{[%emt 00:00:20]} 7. Bd3 {[%clk 01:41:54]} {[%emt 00:00:16]} Re8 {[%clk
01:40:22]} {[%emt 00:00:13]} 8. Nf3 {[%clk 01:39:32]} {[%emt 00:02:51]} h6
{[%clk 01:40:21]} {[%emt 00:00:33]} 9. Bf4 {[%clk 01:39:32]} {[%emt 00:00:29]}
c5 {[%clk 01:40:30]} {[%emt 00:00:21]} 10. dxc5 {[%clk 01:38:10]} {[%emt
00:01:52]} Bxc5 {[%clk 01:40:16]} {[%emt 00:00:45]} 11. O-O {[%clk 01:38:01]}
{[%emt 00:00:37]} Nc6 {[%clk 01:40:41]} {[%emt 00:00:06]} 12. Rc1 {[%clk
01:38:22]} {[%emt 00:00:09]} Bg4 {[%clk 01:39:08]} {[%emt 00:02:03]} 13. Nb5
{[%clk 01:34:19]} {[%emt 00:04:33]} Bb6 {[%clk 01:30:21]} {[%emt 00:09:18]} 14.
Nd6 {[%clk 01:32:34]} {[%emt 00:02:14]} Re6 {[%clk 01:26:47]} {[%emt 00:04:03]}
15. Nf5 {[%clk 01:13:24]} {[%emt 00:19:41]} Ne4 {[%clk 01:11:15]} {[%emt
00:16:02]} 16. Bxe4 {[%clk 01:13:46]} {[%emt 00:00:07]} dxe4 {[%clk 00:52:59]}
{[%emt 00:18:47]} 17. Qxd8+ {[%clk 01:14:08]} {[%emt 00:00:08]} Rxd8 {[%clk
00:52:15]} {[%emt 00:01:14]} 18. N3d4 {[%clk 01:14:32]} {[%emt 00:00:06]} Bxf5
{[%clk 00:44:11]} {[%emt 00:08:35]} 19. Nxf5 {[%clk 01:13:40]} {[%emt
00:01:21]} Rd5 {[%clk 00:38:14]} {[%emt 00:06:26]} 20. g4 {[%clk 01:01:54]}
{[%emt 00:12:16]} Rg6 {[%clk 00:36:05]} {[%emt 00:02:40]} 21. Rxc6 {[%clk
01:02:13]} {[%emt 00:00:11]} Rxg4+ {[%clk 00:34:47]} {[%emt 00:01:48]} 22. Bg3
{[%clk 01:01:59]} {[%emt 00:00:44]} Rxf5 {[%clk 00:33:45]} {[%emt 00:01:32]} 23.
Rc4 {[%clk 01:01:50]} {[%emt 00:00:38]} h5 {[%clk 00:27:26]} {[%emt 00:06:50]}
24. h3 {[%clk 00:55:04]} {[%emt 00:07:15]} Rg6 {[%clk 00:26:26]} {[%emt
00:01:31]} 25. Rxe4 {[%clk 00:52:26]} {[%emt 00:03:08]} Bc7 {[%clk 00:25:36]}
{[%emt 00:01:19]} 26. Kg2 {[%clk 00:47:04]} {[%emt 00:05:51]} Bxg3 {[%clk
00:23:45]} {[%emt 00:02:24]} 27. fxg3 {[%clk 00:47:27]} {[%emt 00:00:06]} Rxf1
{[%clk 00:23:59]} {[%emt 00:00:16]} 28. Kxf1 {[%clk 00:47:51]} {[%emt
00:00:05]} Rxg3 {[%clk 00:24:25]} {[%emt 00:00:05]} 29. Re8+ {[%clk 00:38:02]}
{[%emt 00:10:18]} Kh7 {[%clk 00:24:22]} {[%emt 00:00:34]} 30. Re7 {[%clk
00:38:28]} {[%emt 00:00:04]} Rxh3 {[%clk 00:20:30]} {[%emt 00:04:23]} 31. Rxb7
{[%clk 00:34:40]} {[%emt 00:04:17]} a6 {[%clk 00:07:54]} {[%emt 00:13:06]} 32.
Kf2 {[%clk 00:31:53]} {[%emt 00:03:17]} Kg6 {[%clk 00:05:55]} {[%emt 00:02:29]}
33. a4 {[%clk 00:31:19]} {[%emt 00:01:04]} a5 {[%clk 00:05:11]} {[%emt
00:01:15]} 34. b3 {[%clk 00:31:27]} {[%emt 00:00:22]} Rh2+ {[%clk 00:02:47]}
{[%emt 00:02:54]} 35. Kg3 {[%clk 00:31:02]} {[%emt 00:00:54]} Rb2 {[%clk
00:02:59]} {[%emt 00:00:19]} 36. e4 {[%clk 00:30:07]} {[%emt 00:01:25]} f6
{[%clk 00:02:43]} {[%emt 00:00:45]} 37. Rb6 {[%clk 00:25:40]} {[%emt 00:04:57]}
Kg5 {[%clk 00:02:27]} {[%emt 00:00:46]} 38. Rb5+ {[%clk 00:26:05]} {[%emt
00:00:05]} Kh6 {[%clk 00:02:53]} {[%emt 00:00:04]} 39. Rb6 {[%clk 00:26:30]}
{[%emt 00:00:05]} g6 {[%clk 00:01:39]} {[%emt 00:01:44]} 40. Rb5 {[%clk
00:24:59]} {[%emt 00:02:01]} g5 {[%clk 00:01:12]} {[%emt 00:00:57]} 41. Rb6
{[%clk 00:25:23]} {[%emt 00:00:06]} Kg7 {[%clk 00:49:47]} {[%emt 00:01:54]} 42.
Rb5 {[%clk 01:15:20]} {[%emt 00:00:34]} Kg6 {[%clk 00:49:15]} {[%emt 00:01:02]}
0-1